[Event "Titled Tuesday Blitz February 21 Late 2023"]
[White "Mazurkiewicz, Michal"]
[Black "Fus, Jakub"]
[WhiteFideId "1124943"]
[BlackFideId "1193023"]
[WhiteElo "2145"]
[BlackElo "2417"]
[Result "0-1"]
[Round "10"]
[TimeControl "180+2"]
[Date "2023.02.21"]
[WhiteClock "0:00:03"]
[BlackClock "0:00:39"]

1. e4 {[%clk 0:03:00]}  c5 {[%clk 0:02:15]} 2. Nf3 {[%clk 0:02:59]}  e6 {[%clk 0:02:16]} 3. d3 {[%clk 0:02:59]}  d5 {[%clk 0:02:14]} 4. Nbd2 {[%clk 0:02:59]}  Nc6 {[%clk 0:02:14]} 5. g3 {[%clk 0:03:00]}  Bd6 {[%clk 0:02:15]} 6. Bg2 {[%clk 0:03:00]}  Nge7 {[%clk 0:02:15]} 7. O-O {[%clk 0:03:00]}  O-O {[%clk 0:02:16]} 8. Re1 {[%clk 0:03:01]}  f6 {[%clk 0:02:02]} 9. c3 {[%clk 0:03:00]}  d4 {[%clk 0:01:57]} 10. cxd4 {[%clk 0:02:59]}  cxd4 {[%clk 0:01:58]} 11. Nc4 {[%clk 0:02:59]}  Bc7 {[%clk 0:01:57]} 12. a4 {[%clk 0:02:59]}  e5 {[%clk 0:01:55]} 13. Bd2 {[%clk 0:02:58]}  Be6 {[%clk 0:01:56]} 14. b4 {[%clk 0:02:56]}  Bxc4 {[%clk 0:01:46]} 15. dxc4 {[%clk 0:02:57]}  a5 {[%clk 0:01:46]} 16. b5 {[%clk 0:02:54]}  Nb4 {[%clk 0:01:47]} 17. Qb3 {[%clk 0:02:49]}  Kh8 {[%clk 0:01:41]} 18. c5 {[%clk 0:02:41]}  b6 {[%clk 0:01:33]} 19. Bxb4 {[%clk 0:02:28]}  axb4 {[%clk 0:01:32]} 20. Qxb4 {[%clk 0:02:28]}  bxc5 {[%clk 0:01:30]} 21. Qxc5 {[%clk 0:02:29]}  Bd6 {[%clk 0:01:30]} 22. Qc4 {[%clk 0:02:23]}  Qb6 {[%clk 0:01:27]} 23. Qe6 {[%clk 0:02:11]}  Bc5 {[%clk 0:01:24]} 24. Bh3 {[%clk 0:02:04]}  Qxe6 {[%clk 0:01:19]} 25. Bxe6 {[%clk 0:02:05]}  Bb6 {[%clk 0:01:16]} 26. Rec1 {[%clk 0:02:00]}  Ra5 {[%clk 0:01:15]} 27. Nd2 {[%clk 0:01:57]}  Rfa8 {[%clk 0:01:15]} 28. Bb3 {[%clk 0:01:58]}  Bd8 {[%clk 0:01:10]} 29. Nc4 {[%clk 0:01:57]}  R5a7 {[%clk 0:01:10]} 30. Nd6 {[%clk 0:01:55]}  h6 {[%clk 0:01:05]} 31. Nf7+ {[%clk 0:01:53]}  Kh7 {[%clk 0:01:06]} 32. Nxd8 {[%clk 0:01:53]}  Rxd8 {[%clk 0:01:07]} 33. a5 {[%clk 0:01:54]}  d3 {[%clk 0:01:06]} 34. b6 {[%clk 0:01:53]}  Rb7 {[%clk 0:01:06]} 35. Rd1 {[%clk 0:01:51]}  Rbb8 {[%clk 0:00:59]} 36. Bc4 {[%clk 0:01:36]}  d2 {[%clk 0:00:58]} 37. Rab1 {[%clk 0:01:29]}  Nc8 {[%clk 0:00:53]} 38. Bd5 {[%clk 0:01:27]}  Rd6 {[%clk 0:00:52]} 39. Rxd2 {[%clk 0:01:25]}  Nxb6 {[%clk 0:00:53]} 40. Rdb2 {[%clk 0:01:09]}  Nxd5 {[%clk 0:00:53]} 41. Rxb8 {[%clk 0:01:08]}  Nc3 {[%clk 0:00:53]} 42. R1b7 {[%clk 0:00:55]}  Nxe4 {[%clk 0:00:49]} 43. Rc8 {[%clk 0:00:41]}  Rd1+ {[%clk 0:00:48]} 44. Kg2 {[%clk 0:00:41]}  Rd2 {[%clk 0:00:49]} 45. Rcc7 {[%clk 0:00:35]}  Rxf2+ {[%clk 0:00:47]} 46. Kg1 {[%clk 0:00:35]}  Kg6 {[%clk 0:00:46]} 47. Rxg7+ {[%clk 0:00:35]}  Kf5 {[%clk 0:00:46]} 48. a6 {[%clk 0:00:33]}  Ra2 {[%clk 0:00:46]} 49. a7 {[%clk 0:00:32]}  Ng5 {[%clk 0:00:47]} 50. Rgd7 {[%clk 0:00:14]}  e4 {[%clk 0:00:43]} 51. Rd8 {[%clk 0:00:04]}  e3 {[%clk 0:00:39]} 52. a8=Q {[%clk 0:00:02]}  Nf3+ {[%clk 0:00:39]} 53. Kf1 {[%clk 0:00:03]}  Rf2# {[%clk 0:00:39]} 0-1


[Site "https://www.chess.com"]

[Event "Titled Tuesday Blitz February 21 Late 2023"]
[White "Martinez Ramirez, Lennis"]
[Black "Bambino Filho, Antonio Carlos"]
[WhiteFideId "3509079"]
[BlackFideId "2113163"]
[WhiteElo "2426"]
[BlackElo "2144"]
[Result "0-1"]
[Round "10"]
[TimeControl "180+2"]
[Date "2023.02.21"]
[WhiteClock "0:00:03"]
[BlackClock "0:00:03"]

1. c4 {[%clk 0:02:56]}  c5 {[%clk 0:02:59]} 2. g3 {[%clk 0:02:56]}  Nc6 {[%clk 0:02:59]} 3. Bg2 {[%clk 0:02:54]}  g6 {[%clk 0:02:59]} 4. Nc3 {[%clk 0:02:54]}  Bg7 {[%clk 0:02:59]} 5. a3 {[%clk 0:02:53]}  e5 {[%clk 0:03:00]} 6. b4 {[%clk 0:02:48]}  d6 {[%clk 0:02:58]} 7. e3 {[%clk 0:01:57]}  f5 {[%clk 0:02:48]} 8. d3 {[%clk 0:01:41]}  Nf6 {[%clk 0:02:47]} 9. Rb1 {[%clk 0:01:40]}  O-O {[%clk 0:02:44]} 10. Nge2 {[%clk 0:01:39]}  Qe7 {[%clk 0:02:19]} 11. O-O {[%clk 0:01:33]}  Be6 {[%clk 0:02:12]} 12. Nd5 {[%clk 0:01:22]}  Qf7 {[%clk 0:02:07]} 13. Nec3 {[%clk 0:01:22]}  Rab8 {[%clk 0:02:04]} 14. Qa4 {[%clk 0:01:16]}  a6 {[%clk 0:01:57]} 15. bxc5 {[%clk 0:01:13]}  dxc5 {[%clk 0:01:54]} 16. Rb6 {[%clk 0:01:07]}  Nd7 {[%clk 0:01:50]} 17. Rxc6 {[%clk 0:01:01]}  bxc6 {[%clk 0:01:50]} 18. Qxc6 {[%clk 0:01:02]}  Rfc8 {[%clk 0:01:43]} 19. Qa4 {[%clk 0:00:53]}  e4 {[%clk 0:01:33]} 20. dxe4 {[%clk 0:00:47]}  Ne5 {[%clk 0:01:28]} 21. exf5 {[%clk 0:00:45]}  Bxf5 {[%clk 0:01:19]} 22. e4 {[%clk 0:00:40]}  Be6 {[%clk 0:01:16]} 23. f4 {[%clk 0:00:40]}  Nc6 {[%clk 0:01:16]} 24. e5 {[%clk 0:00:39]}  Nd4 {[%clk 0:01:14]} 25. Ne4 {[%clk 0:00:36]}  Rd8 {[%clk 0:00:29]} 26. Nxc5 {[%clk 0:00:34]}  Qa7 {[%clk 0:00:20]} 27. Nxe6 {[%clk 0:00:33]}  Nxe6+ {[%clk 0:00:18]} 28. Be3 {[%clk 0:00:31]}  Qd7 {[%clk 0:00:17]} 29. Qxa6 {[%clk 0:00:28]}  Nc7 {[%clk 0:00:17]} 30. Nxc7 {[%clk 0:00:22]}  Qxc7 {[%clk 0:00:17]} 31. Bd5+ {[%clk 0:00:23]}  Kh8 {[%clk 0:00:18]} 32. Qa4 {[%clk 0:00:20]}  Bf8 {[%clk 0:00:18]} 33. Bd4 {[%clk 0:00:19]}  Bc5 {[%clk 0:00:18]} 34. Qd1 {[%clk 0:00:19]}  Rb2 {[%clk 0:00:16]} 35. e6+ {[%clk 0:00:17]}  Bxd4+ {[%clk 0:00:09]} 36. Qxd4+ {[%clk 0:00:17]}  Qg7 {[%clk 0:00:10]} 37. Qxg7+ {[%clk 0:00:17]}  Kxg7 {[%clk 0:00:11]} 38. f5 {[%clk 0:00:15]}  gxf5 {[%clk 0:00:08]} 39. Rxf5 {[%clk 0:00:16]}  Rf8 {[%clk 0:00:05]} 40. e7 {[%clk 0:00:15]}  Re8 {[%clk 0:00:05]} 41. Rf7+ {[%clk 0:00:14]}  Kg6 {[%clk 0:00:06]} 42. h4 {[%clk 0:00:11]}  Rd2 {[%clk 0:00:06]} 43. h5+ {[%clk 0:00:11]}  Kxh5 {[%clk 0:00:05]} 44. a4 {[%clk 0:00:09]}  Kg4 {[%clk 0:00:05]} 45. Rg7+ {[%clk 0:00:07]}  Kh3 {[%clk 0:00:05]} 46. Kf1 {[%clk 0:00:06]}  Rb8 {[%clk 0:00:04]} 47. Ke1 {[%clk 0:00:05]}  Ra2 {[%clk 0:00:04]} 48. Be6+ {[%clk 0:00:03]}  Kg2 {[%clk 0:00:03]} 49. Bf5 {[%clk 0:00:04]}  Rbb2 {[%clk 0:00:03]} 50. Be4+ {[%clk 0:00:03]}  Kg1 {[%clk 0:00:03]} 0-1


[Site "https://www.chess.com"]

[Event "Titled Tuesday Blitz February 21 Late 2023"]
[White "Poliakova, Varvara"]
[Black "Arencibia Monduy, Antonio"]
[WhiteFideId "13518313"]
[BlackFideId "3507939"]
[WhiteElo "2010"]
[BlackElo "2122"]
[Result "1-0"]
[Round "10"]
[TimeControl "180+2"]
[Date "2023.02.21"]
[WhiteClock "0:01:08"]
[BlackClock "0:00:01"]

1. e4 {[%clk 0:02:50]}  e6 {[%clk 0:03:00]} 2. d4 {[%clk 0:02:47]}  d5 {[%clk 0:03:00]} 3. e5 {[%clk 0:02:48]}  c5 {[%clk 0:03:00]} 4. c3 {[%clk 0:02:49]}  Nc6 {[%clk 0:02:59]} 5. Nf3 {[%clk 0:02:48]}  cxd4 {[%clk 0:02:59]} 6. cxd4 {[%clk 0:02:48]}  Nge7 {[%clk 0:02:59]} 7. a3 {[%clk 0:02:46]}  Nf5 {[%clk 0:02:59]} 8. Nc3 {[%clk 0:02:39]}  Be7 {[%clk 0:02:54]} 9. Bd3 {[%clk 0:02:35]}  O-O {[%clk 0:02:49]} 10. Ne2 {[%clk 0:02:31]}  f6 {[%clk 0:02:35]} 11. b4 {[%clk 0:02:31]}  fxe5 {[%clk 0:02:35]} 12. dxe5 {[%clk 0:02:30]}  a6 {[%clk 0:02:14]} 13. Ng3 {[%clk 0:02:27]}  Bd7 {[%clk 0:01:42]} 14. O-O {[%clk 0:02:24]}  Nxg3 {[%clk 0:01:42]} 15. hxg3 {[%clk 0:02:25]}  Be8 {[%clk 0:01:41]} 16. Bf4 {[%clk 0:02:19]}  Rc8 {[%clk 0:01:11]} 17. Rc1 {[%clk 0:02:06]}  Nb8 {[%clk 0:00:51]} 18. Rxc8 {[%clk 0:02:02]}  Qxc8 {[%clk 0:00:51]} 19. Qb1 {[%clk 0:01:57]}  g6 {[%clk 0:00:51]} 20. Rc1 {[%clk 0:01:55]}  Nc6 {[%clk 0:00:51]} 21. Bh6 {[%clk 0:01:52]}  Rf7 {[%clk 0:00:51]} 22. Ng5 {[%clk 0:01:53]}  Bxg5 {[%clk 0:00:47]} 23. Bxg5 {[%clk 0:01:54]}  Qb8 {[%clk 0:00:45]} 24. Re1 {[%clk 0:01:48]}  Ne7 {[%clk 0:00:36]} 25. Bf6 {[%clk 0:01:47]}  Bb5 {[%clk 0:00:36]} 26. Bxb5 {[%clk 0:01:44]}  axb5 {[%clk 0:00:36]} 27. Qd3 {[%clk 0:01:42]}  Qe8 {[%clk 0:00:36]} 28. Rc1 {[%clk 0:01:40]}  Qd7 {[%clk 0:00:22]} 29. Rc5 {[%clk 0:01:37]}  Nc6 {[%clk 0:00:19]} 30. Qxb5 {[%clk 0:01:35]}  Rf8 {[%clk 0:00:18]} 31. a4 {[%clk 0:01:32]}  Ra8 {[%clk 0:00:08]} 32. a5 {[%clk 0:01:29]}  Qf7 {[%clk 0:00:07]} 33. Rxc6 {[%clk 0:01:21]}  bxc6 {[%clk 0:00:07]} 34. Qxc6 {[%clk 0:01:22]}  Rb8 {[%clk 0:00:03]} 35. b5 {[%clk 0:01:21]}  Qe8 {[%clk 0:00:03]} 36. Qc7 {[%clk 0:01:19]}  Qf8 {[%clk 0:00:01]} 37. b6 {[%clk 0:01:17]}  Rc8 {[%clk 0:00:02]} 38. Qd7 {[%clk 0:01:16]}  Rc1+ {[%clk 0:00:02]} 39. Kh2 {[%clk 0:01:16]}  Qh6+ {[%clk 0:00:02]} 40. Bh4 {[%clk 0:01:16]}  Qd2 {[%clk 0:00:02]} 41. Qxe6+ {[%clk 0:01:15]}  Kg7 {[%clk 0:00:02]} 42. Qf6+ {[%clk 0:01:11]}  Kg8 {[%clk 0:00:02]} 43. b7 {[%clk 0:01:10]}  Rb1 {[%clk 0:00:02]} 44. Qd8+ {[%clk 0:01:09]}  Kg7 {[%clk 0:00:02]} 45. b8=Q {[%clk 0:01:09]}  Qd1 {[%clk 0:00:02]} 46. Qf6+ {[%clk 0:01:08]}  Kh6 {[%clk 0:00:02]} 47. Qbf8+ {[%clk 0:01:07]}  Kh5 {[%clk 0:00:01]} 48. Qg5# {[%clk 0:01:08]} 1-0


[Site "https://www.chess.com"]

[Event "Titled Tuesday Blitz February 21 Late 2023"]
[White "Haszon, David"]
[Black "Maltsevskaya, Aleksandra"]
[WhiteFideId "733610"]
[BlackFideId "24174041"]
[WhiteElo "2264"]
[BlackElo "2390"]
[Result "0-1"]
[Round "10"]
[TimeControl "180+2"]
[Date "2023.02.21"]
[WhiteClock "0:00:10"]
[BlackClock "0:00:56"]

1. d4 {[%clk 0:03:00]}  Nf6 {[%clk 0:02:56]} 2. Bf4 {[%clk 0:03:00]}  g6 {[%clk 0:02:56]} 3. Nc3 {[%clk 0:02:59]}  Bg7 {[%clk 0:02:56]} 4. e4 {[%clk 0:02:59]}  d6 {[%clk 0:02:57]} 5. Qd2 {[%clk 0:02:59]}  O-O {[%clk 0:02:58]} 6. Bh6 {[%clk 0:02:59]}  c5 {[%clk 0:02:58]} 7. Bxg7 {[%clk 0:02:53]}  Kxg7 {[%clk 0:02:59]} 8. d5 {[%clk 0:02:51]}  a6 {[%clk 0:02:57]} 9. a4 {[%clk 0:02:48]}  Nbd7 {[%clk 0:02:57]} 10. h4 {[%clk 0:02:48]}  Rb8 {[%clk 0:02:56]} 11. h5 {[%clk 0:02:42]}  b5 {[%clk 0:02:56]} 12. hxg6 {[%clk 0:02:33]}  fxg6 {[%clk 0:02:54]} 13. Qh6+ {[%clk 0:02:34]}  Kg8 {[%clk 0:02:53]} 14. Nf3 {[%clk 0:02:19]}  b4 {[%clk 0:02:36]} 15. Nd1 {[%clk 0:01:45]}  Ne5 {[%clk 0:02:30]} 16. Ng5 {[%clk 0:01:41]}  Nf7 {[%clk 0:02:26]} 17. Nxf7 {[%clk 0:01:37]}  Rxf7 {[%clk 0:02:27]} 18. f3 {[%clk 0:01:35]}  b3 {[%clk 0:02:18]} 19. c3 {[%clk 0:01:30]}  e6 {[%clk 0:02:15]} 20. dxe6 {[%clk 0:01:19]}  Bxe6 {[%clk 0:02:16]} 21. Bxa6 {[%clk 0:01:19]}  d5 {[%clk 0:02:15]} 22. e5 {[%clk 0:00:58]}  Nd7 {[%clk 0:02:08]} 23. f4 {[%clk 0:00:54]}  d4 {[%clk 0:02:07]} 24. Bd3 {[%clk 0:00:52]}  Nf8 {[%clk 0:02:03]} 25. c4 {[%clk 0:00:46]}  Rb4 {[%clk 0:01:59]} 26. Rc1 {[%clk 0:00:42]}  Rxa4 {[%clk 0:01:59]} 27. Nf2 {[%clk 0:00:42]}  Ra2 {[%clk 0:01:58]} 28. Rb1 {[%clk 0:00:21]}  Qa5+ {[%clk 0:01:56]} 29. Ke2 {[%clk 0:00:20]}  Qa3 {[%clk 0:01:44]} 30. Ne4 {[%clk 0:00:20]}  Rxb2+ {[%clk 0:01:44]} 31. Rxb2 {[%clk 0:00:21]}  Qxb2+ {[%clk 0:01:45]} 32. Kf3 {[%clk 0:00:21]}  Nd7 {[%clk 0:01:22]} 33. Ng5 {[%clk 0:00:21]}  Nxe5+ {[%clk 0:01:22]} 34. Kg3 {[%clk 0:00:18]}  Ng4 {[%clk 0:00:56]} 35. Qh4 {[%clk 0:00:11]}  Qf2+ {[%clk 0:00:55]} 36. Kh3 {[%clk 0:00:10]}  Ne3+ {[%clk 0:00:55]} 37. Nxe6 {[%clk 0:00:10]}  Qxg2# {[%clk 0:00:56]} 0-1


[Site "https://www.chess.com"]

[Event "Titled Tuesday Blitz February 21 Late 2023"]
[White "Vaglio Mattey, Emanuel"]
[Black "Shapiro, Viktor"]
[WhiteFideId "6504167"]
[BlackFideId "4175700"]
[WhiteElo "2155"]
[BlackElo "2192"]
[Result "0-1"]
[Round "10"]
[TimeControl "180+2"]
[Date "2023.02.21"]
[WhiteClock "0:00:02"]
[BlackClock "0:00:48"]

1. d4 {[%clk 0:03:00]}  Nf6 {[%clk 0:03:00]} 2. Nf3 {[%clk 0:03:01]}  c5 {[%clk 0:03:00]} 3. c3 {[%clk 0:02:59]}  e6 {[%clk 0:03:00]} 4. g3 {[%clk 0:02:59]}  d5 {[%clk 0:03:00]} 5. Bg2 {[%clk 0:02:59]}  Nc6 {[%clk 0:03:00]} 6. O-O {[%clk 0:03:00]}  Be7 {[%clk 0:02:56]} 7. Bg5 {[%clk 0:02:43]}  O-O {[%clk 0:02:55]} 8. Nbd2 {[%clk 0:02:37]}  cxd4 {[%clk 0:02:53]} 9. Nxd4 {[%clk 0:02:34]}  Nxd4 {[%clk 0:02:53]} 10. cxd4 {[%clk 0:02:35]}  Qb6 {[%clk 0:02:49]} 11. Nf3 {[%clk 0:02:16]}  Bd7 {[%clk 0:02:47]} 12. Ne5 {[%clk 0:02:14]}  Bb5 {[%clk 0:02:47]} 13. b4 {[%clk 0:01:56]}  Rfc8 {[%clk 0:02:24]} 14. a4 {[%clk 0:01:51]}  Be8 {[%clk 0:02:23]} 15. Qd2 {[%clk 0:01:47]}  Ne4 {[%clk 0:02:21]} 16. Bxe4 {[%clk 0:01:46]}  Bxg5 {[%clk 0:02:20]} 17. Bxh7+ {[%clk 0:01:43]}  Kxh7 {[%clk 0:02:20]} 18. Qxg5 {[%clk 0:01:42]}  f6 {[%clk 0:02:21]} 19. Qh4+ {[%clk 0:01:40]}  Kg8 {[%clk 0:02:21]} 20. Nd3 {[%clk 0:01:15]}  Rc4 {[%clk 0:02:19]} 21. e3 {[%clk 0:01:13]}  e5 {[%clk 0:02:09]} 22. Nc5 {[%clk 0:00:59]}  exd4 {[%clk 0:01:53]} 23. exd4 {[%clk 0:01:00]}  Rxb4 {[%clk 0:01:44]} 24. a5 {[%clk 0:00:51]}  Qd6 {[%clk 0:01:38]} 25. Rab1 {[%clk 0:00:47]}  Rxb1 {[%clk 0:01:35]} 26. Rxb1 {[%clk 0:00:48]}  b6 {[%clk 0:01:35]} 27. Nb7 {[%clk 0:00:23]}  Qc7 {[%clk 0:01:25]} 28. a6 {[%clk 0:00:21]}  Bg6 {[%clk 0:01:08]} 29. Re1 {[%clk 0:00:21]}  Be4 {[%clk 0:01:04]} 30. Qg4 {[%clk 0:00:17]}  f5 {[%clk 0:00:58]} 31. Qg5 {[%clk 0:00:16]}  Qc3 {[%clk 0:00:54]} 32. Rd1 {[%clk 0:00:14]}  Rc8 {[%clk 0:00:50]} 33. h4 {[%clk 0:00:12]}  Qf3 {[%clk 0:00:50]} 34. Kf1 {[%clk 0:00:02]}  Qxd1# {[%clk 0:00:48]} 0-1


[Site "https://www.chess.com"]

[Event "Titled Tuesday Blitz February 21 Late 2023"]
[White "Sztokbant, Bernardo Vainzoff"]
[Black "Rios Escobar, Adan"]
[WhiteFideId "2115956"]
[BlackFideId "3403645"]
[WhiteElo "2213"]
[BlackElo "2234"]
[Result "0-1"]
[Round "10"]
[TimeControl "180+2"]
[Date "2023.02.21"]
[WhiteClock "0:00:24"]
[BlackClock "0:00:40"]

1. d4 {[%clk 0:03:00]}  Nf6 {[%clk 0:02:56]} 2. c4 {[%clk 0:03:00]}  g6 {[%clk 0:02:56]} 3. Nf3 {[%clk 0:03:01]}  Bg7 {[%clk 0:02:57]} 4. g3 {[%clk 0:03:02]}  c5 {[%clk 0:02:57]} 5. Bg2 {[%clk 0:03:03]}  cxd4 {[%clk 0:02:57]} 6. Nxd4 {[%clk 0:03:04]}  O-O {[%clk 0:02:58]} 7. O-O {[%clk 0:03:04]}  Nc6 {[%clk 0:02:58]} 8. Nc3 {[%clk 0:03:04]}  Qa5 {[%clk 0:02:59]} 9. Nc2 {[%clk 0:02:56]}  d6 {[%clk 0:02:57]} 10. Bd2 {[%clk 0:02:51]}  Qh5 {[%clk 0:02:57]} 11. Ne3 {[%clk 0:02:46]}  Bh3 {[%clk 0:02:51]} 12. Bf3 {[%clk 0:02:38]}  Ng4 {[%clk 0:02:12]} 13. Nxg4 {[%clk 0:02:38]}  Bxg4 {[%clk 0:02:11]} 14. Bxg4 {[%clk 0:02:26]}  Qxg4 {[%clk 0:02:12]} 15. e4 {[%clk 0:02:15]}  Qh3 {[%clk 0:02:08]} 16. Be3 {[%clk 0:02:13]}  Ne5 {[%clk 0:02:06]} 17. Qe2 {[%clk 0:01:53]}  Rfc8 {[%clk 0:02:04]} 18. Nd5 {[%clk 0:01:49]}  Rxc4 {[%clk 0:01:47]} 19. f4 {[%clk 0:01:38]}  Ng4 {[%clk 0:01:37]} 20. e5 {[%clk 0:01:08]}  dxe5 {[%clk 0:01:09]} 21. Rfc1 {[%clk 0:00:43]}  Re4 {[%clk 0:01:02]} 22. f5 {[%clk 0:00:24]}  Bh6 {[%clk 0:00:50]} 23. Nxe7+ {[%clk 0:00:23]}  Kh8 {[%clk 0:00:47]} 24. Bxh6 {[%clk 0:00:24]}  Rxe2 {[%clk 0:00:40]} 0-1


[Site "https://www.chess.com"]

[Event "Titled Tuesday Blitz February 21 Late 2023"]
[White "Pino Perez, Lazaro"]
[Black "Moral Garcia, Serafin"]
[WhiteFideId "3517055"]
[BlackFideId "2201925"]
[WhiteElo "2142"]
[BlackElo "2238"]
[Result "1-0"]
[Round "10"]
[TimeControl "180+2"]
[Date "2023.02.21"]
[WhiteClock "0:00:45"]
[BlackClock "0:01:43"]

1. d4 {[%clk 0:03:00]}  Nf6 {[%clk 0:02:40]} 2. Bf4 {[%clk 0:03:00]}  c5 {[%clk 0:02:39]} 3. d5 {[%clk 0:02:50]}  Qb6 {[%clk 0:02:37]} 4. Nc3 {[%clk 0:02:50]}  Qxb2 {[%clk 0:02:35]} 5. Bd2 {[%clk 0:02:50]}  Qb6 {[%clk 0:02:35]} 6. e4 {[%clk 0:02:41]}  d6 {[%clk 0:02:34]} 7. f4 {[%clk 0:02:41]}  e6 {[%clk 0:02:32]} 8. Rb1 {[%clk 0:02:34]}  Qd8 {[%clk 0:02:30]} 9. Nf3 {[%clk 0:02:31]}  g6 {[%clk 0:02:30]} 10. Bb5+ {[%clk 0:02:21]}  Bd7 {[%clk 0:02:30]} 11. dxe6 {[%clk 0:02:22]}  fxe6 {[%clk 0:02:29]} 12. Ng5 {[%clk 0:02:16]}  Ke7 {[%clk 0:02:11]} 13. e5 {[%clk 0:02:09]}  dxe5 {[%clk 0:02:02]} 14. fxe5 {[%clk 0:02:09]}  Nd5 {[%clk 0:02:00]} 15. O-O {[%clk 0:01:57]}  Bxb5 {[%clk 0:02:00]} 16. Nxb5 {[%clk 0:01:46]}  Bh6 {[%clk 0:01:45]} 17. Rf7+ {[%clk 0:01:31]}  Ke8 {[%clk 0:01:45]} 18. Nd6+ {[%clk 0:01:17]}  Qxd6 {[%clk 0:01:43]} 19. exd6 {[%clk 0:01:18]}  Bxg5 {[%clk 0:01:43]} 20. Bxg5 {[%clk 0:00:55]}  Kxf7 {[%clk 0:01:43]} 21. Rxb7+ {[%clk 0:00:55]}  Ke8 {[%clk 0:01:43]} 22. Qe2 {[%clk 0:00:45]} 1-0


[Site "https://www.chess.com"]

[Event "Titled Tuesday Blitz February 21 Late 2023"]
[White "Jorajuria Mendoza, Algol"]
[Black "Fiorito, Francisco"]
[WhiteFideId "5128897"]
[BlackFideId "180165"]
[WhiteElo "2069"]
[BlackElo "2305"]
[Result "0-1"]
[Round "10"]
[TimeControl "180+2"]
[Date "2023.02.21"]
[WhiteClock "0:00:01"]
[BlackClock "0:02:17"]

1. e4 {[%clk 0:03:00]}  c5 {[%clk 0:02:59]} 2. Nf3 {[%clk 0:03:00]}  Nc6 {[%clk 0:02:59]} 3. Bb5 {[%clk 0:03:00]}  g6 {[%clk 0:02:59]} 4. O-O {[%clk 0:03:00]}  Bg7 {[%clk 0:02:59]} 5. c3 {[%clk 0:03:00]}  Nf6 {[%clk 0:03:00]} 6. Re1 {[%clk 0:03:01]}  O-O {[%clk 0:02:59]} 7. h3 {[%clk 0:03:01]}  Qb6 {[%clk 0:02:59]} 8. a4 {[%clk 0:02:58]}  a6 {[%clk 0:02:58]} 9. Bf1 {[%clk 0:02:58]}  d6 {[%clk 0:02:58]} 10. d4 {[%clk 0:02:49]}  cxd4 {[%clk 0:02:59]} 11. cxd4 {[%clk 0:02:50]}  Nd7 {[%clk 0:02:59]} 12. d5 {[%clk 0:02:05]}  Nce5 {[%clk 0:02:58]} 13. a5 {[%clk 0:01:57]}  Nxf3+ {[%clk 0:02:52]} 14. Qxf3 {[%clk 0:01:54]}  Qb4 {[%clk 0:02:53]} 15. Nc3 {[%clk 0:01:50]}  Nc5 {[%clk 0:02:50]} 16. Bd3 {[%clk 0:01:28]}  Bxc3 {[%clk 0:02:45]} 17. bxc3 {[%clk 0:01:26]}  Qxc3 {[%clk 0:02:45]} 18. Bh6 {[%clk 0:01:23]}  Qxd3 {[%clk 0:02:43]} 19. Re3 {[%clk 0:01:13]}  Qd4 {[%clk 0:02:43]} 20. Rd1 {[%clk 0:01:13]}  Qf6 {[%clk 0:02:41]} 21. Qxf6 {[%clk 0:01:06]}  exf6 {[%clk 0:02:42]} 22. Bxf8 {[%clk 0:01:06]}  Kxf8 {[%clk 0:02:43]} 23. Rb1 {[%clk 0:00:58]}  Bd7 {[%clk 0:02:43]} 24. Rb6 {[%clk 0:00:58]}  Ke7 {[%clk 0:02:36]} 25. f4 {[%clk 0:00:55]}  Bb5 {[%clk 0:02:26]} 26. e5 {[%clk 0:00:54]}  fxe5 {[%clk 0:02:25]} 27. fxe5 {[%clk 0:00:53]}  dxe5 {[%clk 0:02:26]} 28. Rxe5+ {[%clk 0:00:43]}  Kf8 {[%clk 0:02:26]} 29. Re1 {[%clk 0:00:18]}  Rd8 {[%clk 0:02:25]} 30. Rd1 {[%clk 0:00:16]}  Rd7 {[%clk 0:02:20]} 31. Kf2 {[%clk 0:00:14]}  Kg7 {[%clk 0:02:19]} 32. Ke3 {[%clk 0:00:14]}  Na4 {[%clk 0:02:19]} 33. Rxb5 {[%clk 0:00:09]}  axb5 {[%clk 0:02:20]} 34. Kd4 {[%clk 0:00:10]}  b4 {[%clk 0:02:20]} 35. Rb1 {[%clk 0:00:10]}  Nc3 {[%clk 0:02:21]} 36. Rxb4 {[%clk 0:00:10]}  Nxd5 {[%clk 0:02:21]} 37. Rb2 {[%clk 0:00:05]}  Nb4+ {[%clk 0:02:21]} 38. Kc4 {[%clk 0:00:05]}  Nc6 {[%clk 0:02:20]} 39. Kb5 {[%clk 0:00:04]}  Rd5+ {[%clk 0:02:19]} 40. Kb6 {[%clk 0:00:04]}  Nxa5 {[%clk 0:02:20]} 41. Rc2 {[%clk 0:00:02]}  h5 {[%clk 0:02:17]} 42. Rc3 {[%clk 0:00:01]}  h4 {[%clk 0:02:17]} 0-1


[Site "https://www.chess.com"]

[Event "Titled Tuesday Blitz February 21 Late 2023"]
[White "Bhavikatti, Neil"]
[Black "Petukhov, Dmitry"]
[WhiteFideId "30935024"]
[BlackFideId "4142748"]
[WhiteElo "2051"]
[BlackElo "2350"]
[Result "0-1"]
[Round "10"]
[TimeControl "180+2"]
[Date "2023.02.21"]
[WhiteClock "0:00:01"]
[BlackClock "0:00:14"]

1. d4 {[%clk 0:03:00]}  Nf6 {[%clk 0:03:00]} 2. c4 {[%clk 0:03:00]}  g6 {[%clk 0:03:00]} 3. Nc3 {[%clk 0:03:00]}  d5 {[%clk 0:03:00]} 4. Bg5 {[%clk 0:02:59]}  Ne4 {[%clk 0:03:00]} 5. Bh4 {[%clk 0:02:57]}  Nxc3 {[%clk 0:03:00]} 6. bxc3 {[%clk 0:02:57]}  dxc4 {[%clk 0:02:56]} 7. e3 {[%clk 0:02:57]}  Qd5 {[%clk 0:02:56]} 8. Nf3 {[%clk 0:02:50]}  Bg7 {[%clk 0:02:53]} 9. Bg3 {[%clk 0:02:47]}  c5 {[%clk 0:02:52]} 10. Qa4+ {[%clk 0:02:34]}  Nc6 {[%clk 0:02:50]} 11. Bxc4 {[%clk 0:02:33]}  Qh5 {[%clk 0:02:49]} 12. O-O {[%clk 0:02:27]}  O-O {[%clk 0:02:48]} 13. Rfd1 {[%clk 0:02:06]}  cxd4 {[%clk 0:02:43]} 14. cxd4 {[%clk 0:02:05]}  e5 {[%clk 0:02:42]} 15. dxe5 {[%clk 0:01:41]}  Nxe5 {[%clk 0:02:41]} 16. Nxe5 {[%clk 0:01:39]}  Bxe5 {[%clk 0:02:42]} 17. Rd5 {[%clk 0:01:30]}  Bxa1 {[%clk 0:02:22]} 18. Rxh5 {[%clk 0:01:30]}  gxh5 {[%clk 0:02:23]} 19. Qd1 {[%clk 0:01:25]}  Bg7 {[%clk 0:02:06]} 20. Qxh5 {[%clk 0:01:25]}  Be6 {[%clk 0:02:04]} 21. Bd3 {[%clk 0:01:25]}  h6 {[%clk 0:02:04]} 22. Qf3 {[%clk 0:01:16]}  Rfd8 {[%clk 0:01:52]} 23. Qxb7 {[%clk 0:01:04]}  Rac8 {[%clk 0:01:52]} 24. Bf1 {[%clk 0:00:18]}  Rc1 {[%clk 0:01:35]} 25. h4 {[%clk 0:00:18]}  Rdd1 {[%clk 0:01:34]} 26. Kh2 {[%clk 0:00:18]}  Rxf1 {[%clk 0:01:34]} 27. Bf4 {[%clk 0:00:19]}  Bf6 {[%clk 0:01:25]} 28. Bxh6 {[%clk 0:00:16]}  Rh1+ {[%clk 0:01:25]} 29. Kg3 {[%clk 0:00:16]}  Rxh4 {[%clk 0:01:03]} 30. Bf4 {[%clk 0:00:16]}  Rh5 {[%clk 0:00:57]} 31. Qxa7 {[%clk 0:00:13]}  Bh4+ {[%clk 0:00:45]} 32. Kf3 {[%clk 0:00:13]}  Bd5+ {[%clk 0:00:44]} 33. e4 {[%clk 0:00:12]}  Be6 {[%clk 0:00:39]} 34. Qb8+ {[%clk 0:00:12]}  Rc8 {[%clk 0:00:39]} 35. Qb2 {[%clk 0:00:10]}  Rhc5 {[%clk 0:00:28]} 36. g3 {[%clk 0:00:10]}  Rc3+ {[%clk 0:00:28]} 37. Kg2 {[%clk 0:00:10]}  Bf6 {[%clk 0:00:27]} 38. Qe2 {[%clk 0:00:10]}  Rc2 {[%clk 0:00:25]} 39. Qd3 {[%clk 0:00:08]}  Rxa2 {[%clk 0:00:23]} 40. e5 {[%clk 0:00:08]}  Be7 {[%clk 0:00:22]} 41. Qf3 {[%clk 0:00:08]}  Rcc2 {[%clk 0:00:21]} 42. Qb7 {[%clk 0:00:05]}  Rxf2+ {[%clk 0:00:20]} 43. Kg1 {[%clk 0:00:05]}  Bc5 {[%clk 0:00:19]} 44. Qb8+ {[%clk 0:00:04]}  Kh7 {[%clk 0:00:18]} 45. Qb1+ {[%clk 0:00:02]}  Rfc2+ {[%clk 0:00:15]} 46. Kf1 {[%clk 0:00:01]}  Bf5 {[%clk 0:00:14]} 0-1


[Site "https://www.chess.com"]